bitfinex/quotes_SOLUSD_20250207
["timestamp","ask_amount","ask_price","bid_price","bid_amount"]
[1738957162533,38.40702749,196.61,196.6,312.0]
[1738957162732,20.0,196.61,196.6,312.0]
[1738957164007,38.39653574,196.61,196.6,312.0]
[1738957164426,39.66788643,196.61,196.6,312.0]
[1738957165933,21.27135069,196.61,196.6,312.0]
[1738957166860,1.27135069,196.61,196.6,312.0]
[1738957167042,0.03,196.64,196.6,312.0]
[1738957167227,20.03,196.64,196.59,40.36427175]
[1738957167428,20.03,196.64,196.58,40.36427175]
[1738957167640,40.36427175,196.63,196.56,40.36427175]
[1738957167845,40.36427175,196.63,196.49,6.0]
[1738957167846,40.36427175,196.61,196.53,40.36427175]
[1738957168123,5.1155,196.64,196.54,40.36427175]
[1738957168447,40.36427175,196.62,196.55,40.36427175]
[1738957168762,40.36427175,196.6,196.52,40.36427175]
[1738957168928,20.36427175,196.6,196.52,40.36427175]
[1738957169124,20.36427175,196.6,196.53,40.36427175]
[1738957169871,20.0,196.6,196.54,40.36427175]
[1738957170047,45.45017175,196.62,196.55,40.36427175]
[1738957170357,45.45017175,196.62,196.59,312.0]
[1738957170531,126.75017175,196.62,196.59,312.0]
[1738957170733,126.75017175,196.62,196.55,40.36427175]
[1738957171128,0.03,196.64,196.5,0.25098]
[1738957171362,45.47977175,196.64,196.55,40.36427175]
[1738957171729,40.36427175,196.62,196.53,40.36427175]
[1738957171957,40.36427175,196.6,196.53,40.36427175]
[1738957172143,0.36427175,196.6,196.53,40.36427175]
[1738957172444,20.0,196.61,196.53,40.36427175]
[1738957172750,40.36427175,196.62,196.53,40.36427175]
[1738957172931,40.36427175,196.62,196.47,91.28]
[1738957172932,20.0,196.59,196.51,40.36427175]
[1738957173131,40.36427175,196.58,196.52,60.4]
[1738957173332,40.36427175,196.57,196.52,60.4]
[1738957173553,40.36427175,196.59,196.52,100.76427175]
[1738957173848,40.36427175,196.59,196.56,312.0]
[1738957174046,45.45107175,196.59,196.56,312.0]
[1738957174248,2.65076845,196.58,196.52,100.76427175]
[1738957174732,2.65076845,196.58,196.53,40.36427175]
[1738957174932,0.62658432,196.57,196.53,40.36427175]
[1738957175145,0.62658432,196.57,196.53,40.42727175]
[1738957175344,0.62658432,196.57,196.54,40.36427175]
[1738957175653,0.62658432,196.57,196.53,40.42727175]
[1738957175852,0.62658432,196.57,196.54,40.36427175]
[1738957176032,0.62658432,196.57,196.56,40.36427175]
[1738957177156,0.62658432,196.57,196.56,352.36427175]
[1738957179249,0.62658432,196.57,196.56,312.0]
[1738957179456,0.62658432,196.57,196.56,352.36427175]
[1738957180343,0.62658432,196.57,196.56,357.45177175]
[1738957180657,0.62658432,196.57,196.56,357.44887698]
[1738957181652,0.62658432,196.57,196.56,341.92728006]
[1738957182039,0.62658432,196.57,196.56,336.83978006]
[1738957182232,0.62658432,196.57,196.56,341.92728006]
[1738957186055,0.62658432,196.57,196.52,16.07944694]
[1738957186258,26.00322097,196.57,196.56,24.83978006]
[1738957186556,2.65076845,196.58,196.56,24.83978006]
[1738957186756,28.53868538,196.58,196.57,24.83978006]
[1738957186953,2.65076845,196.58,196.57,336.83978006]
[1738957187760,2.65076845,196.58,196.57,312.0]
[1738957189365,2.65076845,196.61,196.57,312.0]
[1738957189557,2.65076845,196.61,196.57,24.83978006]
[1738957189768,2.65076845,196.61,196.6,24.83978006]
[1738957190266,2.65076845,196.61,196.58,24.83978006]
[1738957190566,2.65076845,196.61,196.57,24.83978006]
[1738957190739,3.92206919,196.61,196.57,24.83978006]
[1738957191345,33.84804925,196.61,196.54,24.83978006]
[1738957191541,33.84804925,196.61,196.53,24.90278006]
[1738957191747,24.83978006,196.6,196.53,24.90278006]
[1738957192272,33.84804925,196.61,196.55,24.83978006]
[1738957192570,32.57674851,196.61,196.6,312.0]
[1738957192965,7.73696845,196.61,196.6,312.0]
[1738957193871,24.83978006,196.62,196.6,312.0]
[1738957194059,24.83978006,196.62,196.6,10.25551887]
[1738957194655,24.83978006,196.62,196.61,10.25551887]
[1738957195252,24.83978006,196.62,196.61,1.887e-05]
[1738957195253,29.92568006,196.62,196.61,1.887e-05]
[1738957195456,43.33752859,196.62,196.61,1.887e-05]
[1738957196958,43.33752859,196.62,196.61,312.00001887]
[1738957198152,43.33752859,196.62,196.61,312.0]
[1738957199953,43.36752859,196.62,196.61,312.0]
[1738957200678,5.1159,196.62,196.61,312.0]
[1738957201675,43.36752859,196.62,196.57,0.063]
[1738957201858,24.83978006,196.58,196.57,0.063]
[1738957202672,24.83978006,196.58,196.57,312.063]
[1738957203280,44.83978006,196.59,196.57,312.063]
[1738957203662,44.83978006,196.59,196.57,0.063]
[1738957204261,5.0869,196.58,196.57,0.063]
[1738957206266,17.8017,196.61,196.57,0.063]
[1738957206578,17.8017,196.61,196.6,312.0]
[1738957207365,37.55528006,196.61,196.6,312.0]
[1738957207761,5.1159,196.62,196.6,312.0]
[1738957207962,5.1159,196.62,196.57,24.90278006]
[1738957208663,5.1159,196.62,196.57,0.063]
[1738957210157,5.1159,196.62,196.57,24.90278006]
[1738957210578,5.1159,196.62,196.58,24.83978006]
[1738957210972,5.1159,196.62,196.61,312.0]
[1738957213880,0.03,196.62,196.61,312.0]
[1738957214783,0.03,196.62,196.57,0.063]
[1738957214784,20.0,196.59,196.57,0.063]
[1738957214970,24.83502148,196.58,196.57,0.063]
[1738957215169,24.83502148,196.58,196.57,0.0001]
[1738957216281,29.92192148,196.58,196.56,14.25677552]
[1738957216472,24.83502148,196.57,196.56,7.552e-05]
[1738957216783,24.86264457,196.57,196.56,7.552e-05]
[1738957217087,38.2744931,196.57,196.56,7.552e-05]
[1738957217294,38.2744931,196.57,196.53,0.0001]
[1738957217295,20.0,196.54,196.53,0.0001]
[1738957217461,35.54308167,196.54,196.5,56.0806]
[1738957217778,15.54308167,196.51,196.5,54.4456]
[1738957218368,28.9549302,196.51,196.5,54.4456]
[1738957218765,28.9549302,196.51,196.5,13.6014]
[1738957218985,46.7655302,196.51,196.42,15.54308167]
[1738957219162,15.54308167,196.5,196.43,15.54308167]
[1738957219481,15.54308167,196.49,196.43,15.54308167]
[1738957219680,15.54308167,196.48,196.41,15.54308167]
[1738957219882,24.87632225,196.48,196.41,24.87632225]
[1738957220392,24.87632225,196.45,196.39,26.45292225]
[1738957220585,24.87632225,196.43,196.37,24.93932225]
[1738957221168,24.87632225,196.43,196.37,0.063]
[1738957221583,24.87632225,196.41,196.37,0.063]
[1738957221884,24.87632225,196.39,196.37,0.063]
[1738957222276,24.87632225,196.38,196.37,0.063]
[1738957223279,27.93162225,196.38,196.37,0.063]
[1738957223573,27.93162225,196.38,196.29,24.87632225]
[1738957223574,35.56982225,196.38,196.29,24.87632225]
[1738957223779,24.87632225,196.37,196.3,24.87632225]
[1738957224176,10.6935,196.38,196.32,24.87632225]
[1738957224383,10.6935,196.38,196.37,0.063]
[1738957224384,3.0553,196.38,196.37,0.063]
[1738957224586,3.0548,196.41,196.37,24.93932225]
[1738957224780,3.0548,196.41,196.39,24.87632225]
[1738957225385,3.0548,196.41,196.38,24.87632225]
[1738957225694,3.0543,196.44,196.38,24.87632225]
[1738957226393,27.93062225,196.44,196.37,24.93932225]
[1738957226979,24.87632225,196.43,196.37,0.063]
[1738957227297,3.0543,196.44,196.38,24.87632225]
[1738957227473,3.0543,196.44,196.39,24.87632225]
[1738957227674,3.0542,196.45,196.39,24.87632225]
[1738957229689,3.0539,196.47,196.42,24.87632225]
[1738957229993,3.0539,196.47,196.41,24.87632225]
[1738957230194,3.0539,196.47,196.41,7.19626503]
[1738957231191,3.0539,196.47,196.42,24.87632225]
[1738957232597,3.0537,196.48,196.42,24.87632225]
[1738957234180,27.93002225,196.48,196.42,24.87632225]
[1738957234786,24.87632225,196.43,196.37,0.063]
[1738957234988,24.87632225,196.4,196.37,0.063]
[1738957235192,24.87632225,196.41,196.37,0.063]
[1738957235772,24.87632225,196.44,196.37,24.93932225]
[1738957235975,44.87632225,196.44,196.37,24.93932225]
[1738957236184,44.87632225,196.44,196.38,24.87632225]
[1738957236394,44.87632225,196.44,196.37,24.93932225]
[1738957236593,24.87632225,196.43,196.37,0.063]
[1738957236794,3.0546,196.42,196.37,0.063]
[1738957237106,3.0546,196.42,196.37,24.93932225]
[1738957237783,3.0546,196.42,196.37,0.063]
[1738957238703,3.0546,196.42,196.37,24.9511313]
[1738957239299,3.0546,196.42,196.37,15.61805668]
[1738957240290,35.55505668,196.44,196.37,15.61805668]
[1738957240802,15.55505668,196.43,196.37,0.063]
[1738957240979,15.55505668,196.42,196.37,0.063]
[1738957241179,35.55505668,196.44,196.37,15.61805668]
[1738957241397,20.0,196.44,196.38,15.55505668]
[1738957241802,35.55505668,196.44,196.37,15.61805668]
[1738957242300,15.55505668,196.42,196.37,0.063]
[1738957242499,10.6908,196.43,196.37,0.063]
[1738957242500,15.55505668,196.41,196.37,0.063]
[1738957242797,15.55505668,196.4,196.37,0.063]
[1738957243184,15.55505668,196.39,196.37,0.063]
[1738957244080,15.55505668,196.4,196.37,0.063]
[1738957244280,15.55505668,196.41,196.37,0.063]
[1738957244696,3.0549,196.4,196.37,0.063]
[1738957245301,3.0549,196.4,196.34,15.55505668]
[1738957245907,3.0549,196.4,196.35,15.55505668]
[1738957246282,15.55505668,196.38,196.31,15.55505668]
[1738957246605,15.55505668,196.36,196.29,15.55505668]
[1738957246787,15.55505668,196.36,196.28,15.55505668]
[1738957246981,15.55505668,196.36,196.29,15.55505668]
[1738957247304,10.6923,196.4,196.27,7.6461]
[1738957247305,15.55505668,196.34,196.27,7.6461]
[1738957247695,3.056,196.33,196.27,7.6461]
[1738957248421,15.55505668,196.31,196.27,7.6461]
[1738957248601,15.55505668,196.32,196.27,7.6461]
[1738957249279,15.55505668,196.31,196.27,7.6461]
[1738957249477,3.0565,196.3,196.27,7.6461]
[1738957249907,3.0565,196.3,196.27,1.5007]
[1738957250109,3.0565,196.3,196.28,0.063]
[1738957250785,3.0565,196.3,196.27,1.5007]
[1738957251224,18.61155668,196.3,196.24,60.44]
[1738957251509,15.55505668,196.27,196.24,60.44]
[1738957251814,26.25285668,196.3,196.24,60.44]
[1738957252907,3.0565,196.3,196.26,15.55505668]
[1738957253325,3.0562,196.32,196.26,15.55505668]
[1738957253821,3.0562,196.32,196.27,15.55505668]
[1738957254122,18.61125668,196.32,196.25,15.55505668]
[1738957254419,3.0562,196.32,196.26,15.55505668]
[1738957254730,15.55505668,196.31,196.24,75.99505668]
[1738957254887,3.0562,196.32,196.24,75.99505668]
[1738957254888,15.55505668,196.29,196.24,60.44]
[1738957255091,15.55505668,196.28,196.24,60.44]
[1738957255292,3.0567,196.29,196.24,60.44]
[1738957255901,3.0567,196.29,196.24,75.99505668]
[1738957256524,18.61155668,196.3,196.24,60.44]
[1738957258519,23.19555668,196.32,196.25,15.55505668]
[1738957258929,3.0559,196.34,196.28,15.55505668]
[1738957259101,3.0559,196.34,196.3,15.55505668]
[1738957259297,3.0559,196.34,196.31,15.55505668]
[1738957259608,3.0556,196.36,196.32,15.55505668]
[1738957259923,3.0556,196.36,196.31,15.55505668]
[1738957260129,3.0556,196.36,196.3,15.55505668]
[1738957260696,3.0556,196.36,196.31,15.55505668]
[1738957261113,3.0556,196.36,196.3,15.55505668]
[1738957261315,15.55505668,196.35,196.28,21.76885668]
[1738957262397,3.0559,196.34,196.29,15.55505668]
[1738957262592,3.0559,196.34,196.3,15.55505668]
[1738957262815,15.55505668,196.32,196.25,15.55505668]
[1738957263198,15.55505668,196.32,196.28,0.063]
[1738957263600,15.55505668,196.31,196.28,0.063]
[1738957264501,7.6398,196.34,196.28,0.063]
[1738957264502,18.61155668,196.3,196.28,0.063]
[1738957264922,15.55505668,196.29,196.28,0.063]
[1738957265617,15.55505668,196.29,196.23,1.0]
[1738957265819,15.55505668,196.24,196.23,1.0]
[1738957265998,15.55505668,196.24,196.23,0.0001]
[1738957266400,18.61245668,196.24,196.23,0.0001]
[1738957266908,32.02430521,196.24,196.23,0.0001]
[1738957267209,32.02430521,196.24,196.14,60.5]
[1738957267210,20.0,196.16,196.14,60.5]
[1738957267397,15.55505668,196.15,196.14,60.5]
[1738957267604,15.55505668,196.15,196.14,34.6938]
[1738957267927,28.96690521,196.15,196.05,6.2207]
[1738957268139,15.55505668,196.13,196.05,21.77575668]
[1738957268421,15.55505668,196.12,196.05,15.55505668]
[1738957268807,7.647,196.16,196.05,15.55505668]
[1738957269011,13.41184853,196.15,196.03,17.10395668]
[1738957269219,0.25098,196.14,196.03,17.10395668]
[1738957269426,15.55505668,196.1,196.03,1.5489]
[1738957269616,15.55505668,196.09,196.03,1.5489]
[1738957270624,3.0599,196.08,196.03,1.5489]
[1738957270814,18.67000601,196.08,196.01,15.61010601]
[1738957271014,3.0599,196.08,196.02,15.61010601]
[1738957271628,3.0599,196.08,196.02,24.9754701]
[1738957272001,3.0599,196.08,196.03,24.9754701]
[1738957272532,13.41184853,196.12,195.98,7.8331]
[1738957272533,2.5495,196.12,196.07,24.9754701]
[1738957273048,2.5495,196.12,196.06,24.9754701]
[1738957273415,27.5249701,196.12,196.05,24.9754701]
[1738957274029,2.5495,196.12,196.08,24.9754701]
[1738957274331,2.5495,196.12,196.07,24.9754701]
[1738957274830,2.5495,196.12,196.08,24.9754701]
[1738957275005,2.5493,196.13,196.08,24.9754701]
[1738957275616,2.5493,196.13,196.07,24.9754701]
[1738957275819,27.5247701,196.13,196.06,24.9754701]
[1738957276131,27.5247701,196.13,196.07,24.9754701]
[1738957277639,2.5493,196.13,196.08,24.9754701]
[1738957278348,2.5491,196.14,196.08,24.9754701]
[1738957278755,2.5491,196.14,196.09,24.9754701]
[1738957279038,2.5491,196.14,196.08,24.9754701]
[1738957280918,2.5491,196.14,196.09,24.9754701]
[1738957281147,2.549,196.15,196.11,24.9754701]
[1738957281639,2.5488,196.17,196.12,24.9754701]
[1738957282544,2.5488,196.17,196.13,24.9754701]
[1738957282731,2.5482,196.21,196.16,24.9754701]
[1738957283123,2.5482,196.21,196.17,24.9754701]
[1738957283442,2.5482,196.21,196.18,24.9754701]
[1738957284031,2.5477,196.25,196.2,24.9754701]
[1738957284220,33.8925701,196.25,196.19,24.9754701]
[1738957284421,2.5477,196.25,196.19,24.9754701]
[1738957284627,2.5477,196.25,196.2,24.9754701]
[1738957285043,2.5477,196.25,196.19,24.9754701]
[1738957286038,27.5231701,196.25,196.18,24.9754701]
[1738957286241,24.9754701,196.21,196.14,24.9754701]
[1738957286426,24.9754701,196.2,196.13,24.9754701]
[1738957286742,24.9754701,196.19,196.13,24.9754701]
[1738957286934,24.9754701,196.21,196.14,24.9754701]
[1738957287240,24.9754701,196.2,196.14,24.9754701]
[1738957287644,2.5485,196.19,196.14,24.9754701]
[1738957287827,2.5485,196.19,196.15,24.9754701]
[1738957288029,24.9754701,196.23,196.16,24.9754701]
[1738957288229,24.9754701,196.22,196.15,24.9754701]
[1738957288637,24.9754701,196.21,196.15,24.9754701]
[1738957289033,24.9754701,196.22,196.15,24.9754701]
[1738957289542,2.5482,196.21,196.15,24.9754701]
[1738957290925,2.5482,196.21,196.16,24.9754701]
[1738957291451,2.5481,196.22,196.16,24.9754701]
[1738957291955,33.8939701,196.22,196.15,24.9754701]
[1738957292257,24.9754701,196.18,196.11,24.9754701]
[1738957292460,8.9185,196.22,196.06,0.063]
[1738957292461,24.9754701,196.13,196.06,25.0384701]
[1738957292640,24.96189025,196.14,196.07,24.96189025]
[1738957292840,13.41184853,196.18,196.06,5.1634]
[1738957293049,13.41184853,196.18,196.06,0.063]
[1738957293050,20.0,196.15,196.06,0.063]
[1738957293433,8.922,196.14,196.06,0.063]
[1738957293854,15.60581845,196.11,196.06,0.063]
[1738957294355,15.60581845,196.12,196.06,0.063]
[1738957294670,15.60581845,196.1,196.06,0.063]
[1738957294958,15.60581845,196.11,196.06,0.063]
[1738957295156,15.60581845,196.07,196.06,0.063]
[1738957295358,18.15591845,196.07,196.06,0.063]
[1738957296660,38.17059957,196.07,196.06,0.063]
[1738957296831,51.5824481,196.07,196.06,0.0001]
[1738957297030,38.17059957,196.07,196.05,0.0001]
[1738957297246,22.5501,196.07,196.05,0.0001]
[1738957297841,29.1578381,196.06,196.05,0.0001]
[1738957298047,29.2833281,196.06,196.05,0.0001]
[1738957298245,15.62049957,196.06,196.05,0.0001]
[1738957298444,24.98880142,196.06,196.05,0.0001]
[1738957307734,20.0,196.03,195.94,31.01000142]
[1738957307938,24.98880142,196.01,195.94,31.01000142]
[1738957308339,2.5508,196.01,195.95,24.98880142]
[1738957308751,27.53960142,196.01,195.94,6.0212]
[1738957309162,27.53960142,196.01,196.0,0.0001]
[1738957312265,2.5508,196.01,196.0,0.0001]
[1738957313250,2.5506,196.03,196.0,0.0001]
[1738957313952,27.53940142,196.03,196.0,0.0001]
[1738957314167,24.98880142,196.02,196.0,0.0001]
[1738957314362,24.98880142,196.01,196.0,0.0631]
[1738957314967,24.98880142,196.01,196.0,0.0001]
[1738957315170,20.0,195.99,195.89,6.6446]
[1738957315472,24.98880142,195.9,195.79,31.45850142]
[1738957315680,24.98880142,195.85,195.79,6.4697]
[1738957315851,24.98880142,195.84,195.79,6.4697]
[1738957316257,24.98880142,195.83,195.79,6.4697]
[1738957317181,13.53733853,195.86,195.75,24.98880142]
[1738957317344,24.98880142,195.79,195.72,31.65500142]
[1738957317547,24.98880142,195.79,195.72,6.6662]
[1738957317782,24.98880142,195.77,195.72,6.6662]
[1738957318160,24.98880142,195.8,195.72,31.65500142]
[1738957318364,24.98880142,195.81,195.73,24.98880142]
[1738957318670,24.98880142,195.79,195.72,6.6662]
[1738957318869,24.98880142,195.77,195.7,24.98880142]
[1738957319176,27.54260142,195.78,195.7,24.98880142]
[1738957319373,24.98880142,195.77,195.7,24.98880142]
[1738957319749,27.54260142,195.78,195.7,24.98880142]
[1738957319963,24.98880142,195.76,195.69,24.98880142]
[1738957320356,24.98880142,195.76,195.67,60.6]
[1738957320357,24.98880142,195.77,195.7,24.98880142]
[1738957320862,24.98880142,195.76,195.68,24.98880142]
[1738957321065,24.98880142,195.73,195.66,6.2603]
[1738957321268,24.98880142,195.7,195.66,6.2603]
[1738957321876,24.98880142,195.68,195.61,31.08150142]
[1738957322063,24.98880142,195.7,195.62,24.98880142]
[1738957322463,24.98880142,195.72,195.64,24.98880142]
[1738957322866,24.98880142,195.71,195.64,24.98880142]
[1738957323070,2.5541,195.76,195.61,11.2048]
[1738957323071,24.98880142,195.74,195.67,24.98880142]
[1738957323279,27.54290142,195.76,195.68,24.98880142]
[1738957323485,24.98880142,195.75,195.68,24.98880142]
[1738957324194,24.98880142,195.74,195.67,24.98880142]
[1738957324575,24.98880142,195.75,195.68,24.98880142]
[1738957324776,27.54320142,195.75,195.68,24.98880142]
[1738957325175,24.98880142,195.78,195.71,24.98880142]
[1738957325486,24.98880142,195.77,195.7,24.98880142]
[1738957325675,20.0,195.8,195.63,49.65725854]
[1738957325676,44.98880142,195.8,195.64,2.0]
[1738957325883,44.98880142,195.8,195.73,24.98880142]
[1738957326195,24.98880142,195.75,195.68,24.98880142]
[1738957326385,24.98880142,195.74,195.67,24.98880142]
[1738957326557,2.5538,195.78,195.63,0.12549]
[1738957326763,24.98880142,195.73,195.66,24.98880142]
[1738957326987,24.98880142,195.72,195.65,24.98880142]
[1738957327194,24.98880142,195.72,195.66,24.98880142]
[1738957327572,24.98880142,195.72,195.65,24.98880142]
[1738957327986,24.98880142,195.74,195.67,24.98880142]
[1738957328283,27.54280142,195.77,195.7,24.98880142]
[1738957328972,24.98880142,195.76,195.69,24.98880142]
[1738957329176,27.54280142,195.77,195.71,24.98880142]
[1738957329372,2.554,195.77,195.72,24.98880142]
[1738957329580,2.5538,195.78,195.74,24.98880142]
[1738957329884,27.54240142,195.81,195.75,24.98880142]
[1738957330064,2.5536,195.81,195.76,24.98880142]
[1738957330260,2.5533,195.83,195.78,24.98880142]
[1738957330692,2.5528,195.86,195.81,24.98880142]
[1738957330888,24.98880142,195.89,195.82,24.98880142]
[1738957331190,2.5523,195.9,195.84,24.98880142]
[1738957331386,2.5523,195.9,195.85,24.98880142]
[1738957331888,0.03,195.91,195.88,24.98880142]
[1738957332090,0.03,195.91,195.87,24.98880142]
[1738957332483,0.03,195.91,195.85,24.98880142]
[1738957332665,0.03,195.91,195.82,1.5617]
[1738957332866,24.98880142,195.87,195.82,1.5617]
[1738957333105,24.98880142,195.87,195.8,24.98880142]
[1738957333465,24.98880142,195.88,195.81,24.98880142]
[1738957333668,24.98880142,195.89,195.82,24.98880142]
[1738957333980,2.5822,195.91,195.87,24.98880142]
[1738957334499,2.5822,195.91,195.85,24.98880142]
[1738957335783,2.5822,195.91,195.79,36.2657]
[1738957335784,24.98880142,195.88,195.81,24.98880142]
[1738957336180,24.98880142,195.9,195.83,24.98880142]
[1738957336382,0.03,195.91,195.86,24.98880142]
[1738957336588,0.03,195.91,195.81,31.12549]
[1738957336787,0.03,195.91,195.82,0.76565381]
[1738957336993,0.03,195.91,195.89,24.98880142]
[1738957337293,0.03,195.91,195.9,24.98880142]
[1738957341973,0.03,195.91,195.89,25.05180142]
[1738957342179,0.03,195.91,195.89,0.063]
[1738957343394,25.01880142,195.91,195.89,0.063]
[1738957343699,0.03,195.91,195.89,0.063]
[1738957346995,0.03,195.91,195.89,25.05180142]
[1738957347193,0.03,195.91,195.9,24.98880142]
[1738957347980,0.03,195.91,195.9,31.53540142]
[1738957348382,0.03,195.91,195.9,36.64000142]
[1738957348997,0.03,195.91,195.9,38.53090213]
[1738957349197,0.03,195.91,195.9,36.76549142]
[1738957350876,2.5507,196.02,195.92,0.12549]
[1738957351082,2.5503,196.05,196.01,24.98880142]
[1738957351389,2.5503,196.05,196.0,24.98880142]
[1738957351997,0.03,196.06,196.04,24.98880142]
[1738957352177,0.03,196.06,196.05,24.98880142]
[1738957352795,0.03,196.06,196.05,30.08950142]
[1738957353178,0.03,196.06,196.05,24.98880142]
[1738957353375,0.03,196.06,196.04,24.98880142]
[1738957353807,0.03,196.06,196.05,24.98880142]
[1738957353979,0.03,196.06,196.01,6.3168]
[1738957353980,0.03,196.06,196.01,31.30560142]
[1738957354181,24.98880142,196.04,195.98,24.98880142]
[1738957354381,24.98880142,196.03,195.96,24.98880142]
[1738957354691,0.03,196.06,195.97,24.98880142]
[1738957354692,24.98880142,196.04,195.97,24.98880142]
[1738957355015,0.03,196.06,195.93,24.98880142]
[1738957355016,24.98880142,195.99,195.93,24.98880142]
[1738957355299,24.98880142,195.99,195.92,24.98880142]
[1738957355690,24.98880142,195.99,195.93,24.98880142]
[1738957355890,24.98880142,195.99,195.92,24.98880142]
[1738957356199,24.98880142,195.98,195.91,24.98880142]
[1738957356707,25.00265587,195.98,195.91,25.00265587]
[1738957356924,2.5514,195.97,195.91,25.00265587]
[1738957357211,13.44184853,196.06,195.9,6.5304]
[1738957357212,2.551,196.0,195.94,25.00265587]
[1738957357417,2.551,196.0,195.94,40.61940683]
[1738957357589,43.17040683,196.0,195.93,40.61940683]
[1738957358912,43.17040683,196.0,195.97,40.61940683]
[1738957358913,2.551,196.0,195.97,40.61940683]
[1738957359126,2.551,196.0,195.95,40.61940683]
[1738957359301,2.551,196.0,195.93,40.61940683]
[1738957359302,43.17040683,196.0,195.93,40.61940683]
[1738957359812,2.551,196.0,195.94,40.61940683]
[1738957360595,2.551,196.0,195.93,40.61940683]
[1738957361002,43.17040683,196.0,195.93,40.61940683]
[1738957361611,2.551,196.0,195.94,40.61940683]
[1738957362105,40.61940683,195.98,195.92,40.61940683]
[1738957362697,49.54790683,196.0,195.93,40.61940683]
[1738957363282,40.61940683,195.99,195.92,40.61940683]
[1738957363482,40.61940683,195.96,195.89,40.68240683]
[1738957363716,40.61940683,195.94,195.89,0.063]
[1738957364225,40.61940683,195.95,195.89,0.063]
[1738957364597,40.61940683,195.94,195.89,0.063]
[1738957365125,6.3787,195.97,195.9,40.61940683]
[1738957365126,2.5519,195.93,195.9,40.61940683]
[1738957365996,2.5519,195.93,195.91,0.063]
[1738957366421,2.5514,195.97,195.92,40.61940683]
[1738957366626,46.99690683,196.0,195.93,40.61940683]
[1738957367431,6.3775,196.0,195.94,40.61940683]
[1738957367723,6.3775,196.0,195.91,0.063]
[1738957367724,2.551,196.0,195.96,40.61940683]
[1738957368133,2.551,196.0,195.97,40.61940683]
[1738957368491,0.03,196.06,195.91,5.1673]
[1738957368492,2.5802,196.06,195.99,40.61940683]
[1738957368729,2.5802,196.06,196.04,40.61940683]
[1738957368997,2.5802,196.06,195.97,0.76525477]
[1738957369197,2.5802,196.06,195.96,36.4917]
[1738957369198,2.5802,196.06,196.0,40.61940683]
[1738957370414,40.61940683,196.01,195.92,40.61940683]
[1738957370617,40.61940683,195.99,195.92,40.61940683]
[1738957370811,40.61940683,195.98,195.91,40.68240683]
[1738957371007,40.61940683,195.97,195.91,0.063]
[1738957371513,40.61940683,195.98,195.91,40.68240683]
[1738957371818,2.5515,195.96,195.91,0.063]
[1738957372008,2.5515,195.96,195.9,38.68240683]
[1738957372214,2.5515,195.96,195.9,40.61940683]
[1738957372521,2.5515,195.96,195.91,40.61940683]
[1738957373612,2.5514,195.97,195.91,40.61940683]
[1738957374234,2.5514,195.97,195.89,0.063]
[1738957374235,40.61940683,195.93,195.89,0.063]
[1738957374430,40.61940683,195.95,195.89,0.063]
[1738957374631,40.61940683,195.96,195.89,40.68240683]
[1738957374840,49.54930683,195.97,195.9,40.61940683]
[1738957375018,8.9299,195.97,195.91,40.61940683]
[1738957375739,49.54930683,195.97,195.9,40.61940683]
[1738957375936,40.61940683,195.96,195.89,40.68240683]
[1738957376237,49.54930683,195.97,195.9,40.61940683]
[1738957376609,49.56220424,195.97,195.9,40.63230424]
[1738957376815,8.9299,195.97,195.91,40.63230424]
[1738957377235,8.9299,195.97,195.91,25.00288956]
[1738957379739,8.9299,195.97,195.89,0.063]
[1738957379939,25.00288956,195.92,195.89,0.063]
[1738957380825,25.00288956,195.9,195.89,0.063]
[1738957381521,25.00288956,195.9,195.81,60.6]
[1738957381716,25.00288956,195.86,195.81,60.6]
[1738957381929,2.5529,195.85,195.81,60.6]
[1738957383821,6.3808,195.9,195.84,25.00288956]
[1738957384023,2.5524,195.89,195.84,25.00288956]
[1738957384341,2.5524,195.89,195.83,25.00288956]
[1738957385254,2.552,195.92,195.87,25.00288956]
[1738957385823,27.55478956,195.93,195.86,25.00288956]
[1738957386029,25.00288956,195.92,195.85,25.00288956]
[1738957386933,25.00288956,195.89,195.81,85.60288956]
[1738957387138,25.00288956,195.9,195.83,25.00288956]
[1738957387933,2.5524,195.89,195.83,25.00288956]
[1738957388559,2.5524,195.89,195.84,25.00288956]
[1738957388964,2.5524,195.89,195.83,25.00288956]